fUST/lending_fUST_20260131
["ID","MTS","AMOUNT","RATE_DAILY","PERIOD"]
[404106813,1769856632815,-500.0,0.00024647,2]
[404106815,1769856632824,-500.0,0.00024647,2]
[404106817,1769856632833,-500.0,0.00024647,2]
[404106819,1769856632842,-500.0,0.00024647,2]
[404106821,1769856632852,-500.0,0.00024647,2]
[404106823,1769856632861,-500.0,0.00024647,2]
[404106825,1769856632870,-500.0,0.00024647,2]
[404106827,1769856632880,-500.0,0.00024647,2]
[404106829,1769856632890,-500.0,0.00024647,2]
[404106831,1769856632899,-159.05852257,0.00024647,2]
[404106833,1769856632909,-500.0,0.00024647,2]
[404106835,1769856632918,-577.43966974,0.00024647,2]
[404106837,1769856632928,-500.0,0.00024647,2]
[404106839,1769856632938,-500.0,0.00024647,2]
[404106841,1769856632947,-500.0,0.00024647,2]
[404106843,1769856632958,-500.0,0.00024647,2]
[404106845,1769856632967,-500.0,0.00024647,2]
[404106847,1769856632976,-500.0,0.00024647,2]
[404106849,1769856632985,-500.0,0.00024647,2]
[404106851,1769856632994,-500.0,0.00024647,2]
[404106853,1769856633003,-500.0,0.00024647,2]
[404106855,1769856633012,-500.0,0.00024647,2]
[404106857,1769856633021,-500.0,0.00024647,2]
[404106859,1769856633031,-500.0,0.00024647,2]
[404106860,1769856633040,-500.0,0.00024647,2]
[404106862,1769856633049,-500.0,0.00024647,2]
[404106865,1769856633060,-500.0,0.00024647,2]
[404106867,1769856633069,-500.0,0.00024647,2]
[404106869,1769856633078,-500.0,0.00024647,2]
[404106871,1769856633087,-500.0,0.00024647,2]
[404106872,1769856633096,-500.0,0.00024647,2]
[404106874,1769856633105,-500.0,0.00024647,2]
[404106876,1769856633114,-500.0,0.00024647,2]
[404106878,1769856633123,-500.0,0.00024647,2]
[404106880,1769856633133,-500.0,0.00024647,2]
[404106882,1769856633142,-500.0,0.00024647,2]
[404106884,1769856633150,-500.0,0.00024647,2]
[404106886,1769856633159,-483.69939537,0.00024647,2]
[404106888,1769856633169,-500.0,0.00024647,2]
[404106890,1769856633178,-500.0,0.00024647,2]
[404106892,1769856633187,-500.0,0.00024647,2]
[404106894,1769856633196,-469.06808176,0.00024647,2]
[404106896,1769856633205,-500.0,0.00024647,2]
[404106898,1769856633214,-500.0,0.00024647,2]
[404106900,1769856633224,-500.0,0.00024647,2]
[404106902,1769856633233,-500.0,0.00024647,2]
[404106904,1769856633243,-500.0,0.00024647,2]
[404106906,1769856633252,-500.0,0.00024647,2]
[404106908,1769856633261,-628.78428028,0.00024647,2]
[404106909,1769856633270,-368.57279368,0.00024649,2]
[404106910,1769856633279,-500.0,0.00024649,2]
[404106911,1769856633288,-39191.74788524,0.0002465,2]
[404106926,1769856638380,-36332.31640192,0.0002465,2]
[404106927,1769856638390,-514.91000007,0.0002465,2]
[404106928,1769856638399,-250.0,0.00024658,2]
[404106929,1769856638408,-16855.06228735,0.00024774,2]
[404106930,1769856638417,-2485.10779174,0.000248,2]
[404106931,1769856638426,-318.72,0.0002499,3]
[404106932,1769856638435,-376.33692443,0.00025,2]
[404106933,1769856638446,-2303.2117052,0.00025,2]
[404106934,1769856638456,-10364.0,0.00025,2]
[404106935,1769856638466,-150.0,0.00025,2]
[404106936,1769856638476,-500.0,0.00025,2]
[404106937,1769856638486,-761.44665922,0.00025,2]
[404106938,1769856638495,-581.89405791,0.000252,5]
[404106939,1769856638505,-530.69090686,0.00026,2]
[404106940,1769856638514,-1631.68019458,0.00026,30]
[404106941,1769856638523,-19900.0,0.00026,2]
[404106942,1769856638532,-161.0,0.00026,5]
[404106943,1769856638542,-194.95428497,0.0002616,2]
[404106944,1769856638551,-150.0,0.0002739,2]
[404106945,1769856638560,-500.0,0.00027397,5]
[404106946,1769856638570,-1242.55389587,0.0002749,2]
[404106947,1769856638579,-46024.55660081,0.000275,2]
[404106948,1769856638589,-153.76,0.000276,14]
[404106949,1769856638601,-1242.55389587,0.00027606,2]
[404106950,1769856638614,-1000.0,0.00027777,5]
[404106951,1769856638623,-1001.65191012,0.00027945,5]
[404106952,1769856638632,-4518.5757819,0.00027976,2]
[404106953,1769856638642,-15342.12901968,0.00028,2]
[404106954,1769856638652,-161.86067627,0.0002876,2]
[404106955,1769856638661,-19171.21606201,0.0002876,2]
[404106956,1769856638670,-891.94872876,0.00029,2]
[404106957,1769856638679,-200.0,0.00029131,2]
[404106958,1769856638691,-1242.55389587,0.0002914,2]
[404106959,1769856638700,-13312.16674279,0.0002975,2]
[404106960,1769856638710,-1242.55389587,0.0002999,2]
[404106961,1769856638719,-850.76384475,0.0003,5]
[404106962,1769856638728,-37802.63244106,0.0003,2]
[404106963,1769856638737,-165.46,0.0003,5]
[404106964,1769856638746,-270.06184514,0.0003,2]
[404106965,1769856638755,-380.0,0.00030123,2]
[404106966,1769856638764,-150.0,0.0003013,2]
[404106967,1769856638774,-160.0,0.00030506,3]
[404106968,1769856638783,-447.07831943,0.00030985,2]
[404106969,1769856638792,-306.48459716,0.0003099,2]
[404106970,1769856638802,-3183.90447855,0.000313,2]
[404106971,1769856638812,-1130.0,0.000315,5]
[404106972,1769856638822,-1008.2305378,0.00031523,2]
[404106973,1769856638832,-1242.55389587,0.0003189,2]
[404106974,1769856638842,-44004.60680431,0.000319,2]
[404106975,1769856638851,-200.9287532,0.00032,2]
[404106976,1769856638860,-500.0,0.0003216,2]
[404106977,1769856638871,-224.9666413,0.00032315,2]
[404106978,1769856638880,-1125.76980038,0.00032615,2]
[404106979,1769856638890,-16153.2006463,0.0003299,2]
[404106980,1769856638900,-374561.18873609,0.00033,2]
[404107039,1769856643634,-2015.79354857,0.00033,2]
[404107040,1769856643689,-5660.686543,0.00033,2]
[404107057,1769856896807,425.01,0.00030137,120]
[404107058,1769856911486,151.0,0.00035423,30]
[404107059,1769856912272,156.587,0.00035423,30]
[404107060,1769856912754,162.380719,0.00035423,30]
[404107061,1769856913391,168.3888056,0.00035423,30]
[404107062,1769856914064,168.3888056,0.00035423,30]
[404107063,1769856917014,425.01,0.00030137,120]
[404107065,1769856942628,2058.09294918,0.00035423,120]
[404107069,1769857209635,155.19,8.981e-05,2]
[404107070,1769857221239,-155.22,9e-05,2]
[404107071,1769857221268,-155.22,0.000102,2]
[404107072,1769857237012,-155.22,0.000113,2]
[404107073,1769857237181,-155.22,0.000125,2]
[404107074,1769857252685,-155.22,0.000137,2]
[404107075,1769857252713,-155.22,0.000149,2]
[404107076,1769857268492,-155.22,0.00016,2]
[404107077,1769857284304,-155.22,0.000172,2]
[404107078,1769857284339,-155.22,0.000184,2]
[404107079,1769857300047,-155.22,0.000196,2]
[404107080,1769857300078,-155.22,0.000207,2]
[404107081,1769857316233,-155.22,0.000219,2]
[404107082,1769857331960,-167.0,0.00023014,8]
[404107083,1769857331991,-155.22,0.000231,2]
[404107084,1769857332022,-155.22,0.000243,2]
[404107085,1769857353916,-1290.35186531,0.00024981,2]
[404107095,1769857830847,151.0,0.0003538,31]
[404107096,1769857831147,151.0,0.0003538,31]
[404107097,1769857831428,151.0,0.0003538,31]
[404107098,1769857831721,151.0,0.0003538,31]
[404107099,1769857832008,151.0,0.0003538,31]
[404107118,1769857832306,151.0,0.0003538,31]
[404107125,1769857832355,-3037.43992436,0.00023051,2]
[404107127,1769857832364,-779.0,0.00023051,2]
[404107129,1769857832373,-671.44652068,0.00023284,2]
[404107131,1769857832382,-5000.0,0.00023519,2]
[404107133,1769857832391,-155.22,0.000254,2]
[404107135,1769857832400,-155.22,0.000266,2]
[404107137,1769857832409,-155.22,0.000278,2]
[404107139,1769857832419,-155.22,0.00029,2]
[404107141,1769857832428,-5073.07886323,0.000297,2]
[404107159,1769857832604,288.179184,0.0003538,31]
[404107242,1769857838524,-1350.19594752,0.000297,2]
[404107243,1769857838535,-1189.61098215,0.000297,2]
[404107244,1769857838546,-429.52205352,0.000297,2]
[404107245,1769857838576,-1547.54367944,0.000297,2]
[404107246,1769857838586,-968.25011501,0.00031469,2]
[404107247,1769857838597,-2097.08837169,0.00031469,2]
[404107248,1769857838607,-441.35278557,0.000329,2]
[404107249,1769857838631,-538.362,0.000329,2]
[404107250,1769857838642,-4347.79342171,0.000329,2]
[404107251,1769857838651,-169.84,0.0003299,3]
[404107252,1769857838661,-509.53,0.0003299,3]
[404107253,1769857838671,-258.00095558,0.00032999,7]
[404107254,1769857838681,-500.0,0.00032999,7]
[404107255,1769857838690,-500.0,0.00032999,7]
[404107256,1769857838700,-230.82662997,0.00032999,7]
[404107257,1769857838711,-496.5631202,0.00032999,7]
[404107258,1769857838721,-500.0,0.00032999,7]
[404107259,1769857838731,-442.63326615,0.00032999,7]
[404107260,1769857838741,-180.6006689,0.00032999,7]
[404107261,1769857838750,-131808.57139097,0.00033,2]
[404107270,1769857840835,-339.83814567,0.00033,2]
[404107271,1769857840846,-2135.25721515,0.00033,2]
[404107281,1769857843852,-2169.5180737,0.00033,2]
[404107307,1769858080638,168.0,0.00030137,120]
[404107314,1769858816094,-818.0,0.00024953,2]
[404107315,1769858816114,-339.68,0.0003299,3]
[404107316,1769858816134,-208.38,0.0003299,3]
[404107317,1769858816154,-625.16,0.0003299,3]
[404107318,1769858816175,-13757.29536,0.00033,2]
[404107322,1769858854083,-2432.02670353,0.00024456,2]
[404107323,1769858854105,-4661.56968137,0.000329,2]
[404107324,1769858854126,-133746.70124102,0.00033,2]
[404107325,1769858874649,321.66521853,0.00035384,120]
[404107373,1769859031613,-59682.43402005,0.00012,5]
[404107375,1769859031625,-854.08839603,0.00012,5]
[404107381,1769859031670,-1660.74,0.00012,5]
[404107383,1769859031685,-458.23756058,0.00012,5]
[404107387,1769859031696,-2018.99078138,0.00012,5]
[404107436,1769859037094,-1290.35186531,0.00012,5]
[404107439,1769859037794,-22004.01181668,0.00012,5]
[404107440,1769859037805,-2675.35888061,0.0002,7]
[404107441,1769859037816,-416.76,0.0003299,3]
[404107442,1769859037829,-41.93768057,0.00033,2]
[404107443,1769859037842,-202096.43046414,0.00033,2]
[404107489,1769859043280,-1749.83504,0.00033,2]
[404107554,1769859045863,-833.19441317,0.00033,2]
[404107568,1769859046004,-26228.02716499,0.00033,2]
[404107570,1769859046016,-3110.43251235,0.00033,2]
[404107573,1769859046027,-850.19481905,0.00033,2]
[404107594,1769859331484,500.0,0.00035395,120]
[404107595,1769859331645,500.0,0.00035395,120]
[404107596,1769859331871,500.0,0.00035395,120]
[404107597,1769859332091,500.0,0.00035395,120]
[404107598,1769859332340,500.0,0.00035395,120]
[404107599,1769859332580,374.325926,0.00035395,120]
[404107600,1769859600086,3988.38925146,0.00035393,120]
[404107603,1769859703018,5020.7600588,0.00035393,30]
[404107604,1769859765979,307.89,0.00035393,120]
[404107605,1769859939091,-158.0,0.00013699,2]
[404107606,1769859939113,-303.0,0.00032899,2]
[404107607,1769859939137,-16756.359244,0.000329,2]
[404107609,1769860027227,-4628.28686568,0.000328,2]
[404107610,1769860027251,-7626.3182345,0.000329,2]
[404107643,1769860231790,-614.35401849,0.000328,2]
[404107650,1769860231844,-3464.5194527,0.000328,2]
[404107651,1769860231854,-3321.10912007,0.000329,2]
[404107654,1769860231865,-2886.24772755,0.000329,2]
[404107656,1769860231876,-1667.7762393,0.000329,2]
[404107673,1769860237881,-439.5,0.000329,2]
[404107674,1769860237967,-307624.62621133,0.000329,2]
[404107675,1769860237978,-2530.46,0.000329,2]
[404107726,1769860246167,-1913.039916,0.000329,2]
[404107727,1769860246213,-1361.62278891,0.00032571,2]
[404107730,1769860363129,10000.0,0.00035395,120]
[404107862,1769861438144,-301.0,0.0003247,3]
[404107863,1769861438155,-68.43670899,0.0003247,3]
[404107864,1769861438167,-232.56329101,0.0003247,3]
[404107865,1769861438177,-300.0,0.0003247,2]
[404107866,1769861438187,-400.0,0.0003247,3]
[404107867,1769861438196,-722.47137009,0.0003247,3]
[404107868,1769861438208,-477.52862991,0.0003247,3]
[404107869,1769861438217,-1276.59641232,0.00032471,2]
[404107870,1769861438228,-2844.9653389,0.00032471,2]
[404107871,1769861438239,-1801.30714739,0.00032471,2]
[404107904,1769861443535,-5131.23081191,0.00032471,2]
[404107914,1769861446466,-608.11491716,0.00032471,2]
[404107915,1769861446478,-14814.08768977,0.00032471,2]
[404107916,1769861446489,-4168.74385638,0.00032571,2]
[404107917,1769861504143,417.865144,0.00035393,120]
[404107927,1769862568086,-1219.40779046,0.00012057,2]
[404107928,1769862568105,-999.999999,0.00023,2]
[404107929,1769862568125,-150.0,0.00025,2]
[404107930,1769862568144,-150.0,0.00026,2]
[404107931,1769862568165,-150.0,0.00027,2]
[404107932,1769862568186,-150.0,0.00028,2]
[404107933,1769862568206,-150.0,0.00029,2]
[404107964,1769862632105,-150.0,0.0003,2]
[404107965,1769862632116,-150.0,0.00031,2]
[404107967,1769862632126,-150.0,0.00032,2]
[404107969,1769862632135,-300.0,0.0003227,3]
[404107971,1769862632144,-300.0,0.0003227,2]
[404107973,1769862632155,-309.0,0.0003227,3]
[404107974,1769862632165,-300.0,0.0003227,3]
[404107976,1769862632175,-390.0,0.0003227,3]
[404107978,1769862632185,-1200.0,0.0003227,3]
[404107980,1769862632194,-18953.23196709,0.00032271,2]
[404107989,1769862638303,-2662.80867801,0.00032271,2]
[404107990,1769862638352,-960.88302587,0.00032271,2]
[404107991,1769862638365,-675.04222588,0.00032271,2]
[404107992,1769862638376,-163.099,0.0003237,32]
[404107993,1769862638386,-500.0,0.0003257,2]
[404107994,1769862638397,-500.0,0.0003257,2]
[404107995,1769862638407,-500.0,0.0003257,2]
[404107996,1769862638417,-500.0,0.0003257,2]
[404107997,1769862638428,-500.0,0.0003257,2]
[404107998,1769862638437,-500.0,0.0003257,2]
[404107999,1769862638447,-284.89460079,0.0003257,2]
[404108000,1769862638457,-46.15798572,0.00032571,2]
[404108001,1769862638639,-1177.8415112,0.00032571,2]
[404108002,1769862638654,-2107.05308959,0.00032571,2]
[404108009,1769862640510,-5542.0,0.00032571,2]
[404108015,1769862643720,-626.16112549,0.00032571,2]
[404108023,1769862646541,-3699.52282203,0.00032571,2]
[404108024,1769862646553,-461.02753643,0.00032571,2]
[404108025,1769862650413,5950.0,0.00030137,120]
[404108026,1769862683767,473.969231,0.00035395,31]
[404108027,1769862684351,473.969231,0.00035395,31]
[404108028,1769862684653,473.969231,0.00035395,31]
[404108029,1769862684948,473.969231,0.00035395,31]
[404108030,1769862685240,473.969231,0.00035395,31]
[404108031,1769862685555,473.969231,0.00035395,31]
[404108032,1769862685898,473.969231,0.00035395,31]
[404108033,1769862686211,473.969231,0.00035395,31]
[404108034,1769862686518,473.969231,0.00035395,31]
[404108035,1769862686831,473.969231,0.00035395,31]
[404108036,1769862687131,473.969231,0.00035395,31]
[404108037,1769862687416,473.969231,0.00035395,31]
[404108038,1769862687778,473.969231,0.00035395,31]
[404108039,1769862688076,473.969231,0.00035395,31]
[404108040,1769862688363,473.969231,0.00035395,31]
[404108041,1769862688647,473.969231,0.00035395,31]
[404108042,1769862689269,473.969231,0.00035395,31]
[404108043,1769862689607,473.969231,0.00035395,31]
[404108044,1769862689968,473.969231,0.00035395,31]
[404108045,1769862690319,473.969234,0.00035395,31]
[404108049,1769862910384,151.0,0.00035395,30]
[404108050,1769862911012,151.0,0.00035395,30]
[404108053,1769862942864,5684.69,0.00035395,120]
[404108054,1769863059149,5000.0,0.00035395,49]
[404108070,1769863579457,599.0,0.00035397,120]
[404108071,1769863609180,-291.17397199,0.00025376,2]
[404108072,1769863609202,-403.3085535,0.0003207,3]
[404108104,1769863820146,100000.00000084,0.00035397,30]
[404108118,1769863832384,-189.0,0.0003207,3]
[404108119,1769863832393,-797.0,0.0003207,3]
[404108120,1769863832403,-26575.11022145,0.00032071,2]
[404108121,1769863832414,-18343.76754984,0.00032071,2]
[404108122,1769863832424,-979.0,0.00032071,2]
[404108123,1769863832435,-188.20085694,0.00032371,2]
[404108124,1769863832444,-761.14910248,0.00032571,2]
[404108125,1769863832457,-4543.55715804,0.00032571,2]
[404108165,1769863843766,-453.50812795,0.00032571,2]
[404108171,1769863844067,-77.16472505,0.00032571,2]
[404108175,1769864111972,250.0,0.00035397,30]
[404108176,1769864112588,250.0,0.00035397,30]
[404108177,1769864113738,250.0,0.00035397,30]
[404108178,1769864114358,250.0,0.00035397,30]
[404108179,1769864114728,344956.91279876,0.00035397,30]
[404108180,1769864115043,250.0,0.00035397,30]
[404108181,1769864115954,250.0,0.00035397,30]
[404108182,1769864116417,250.0,0.00035397,30]
[404108183,1769864117568,250.0,0.00035397,30]
[404108197,1769864784602,548.22,0.00035399,120]
[404108198,1769864784832,548.22,0.00035399,120]
[404108199,1769864785059,548.22,0.00035399,120]
[404108200,1769864785380,548.22,0.00035399,120]
[404108201,1769864785603,548.22,0.00035399,120]
[404108202,1769864786185,548.22,0.00035399,120]
[404108203,1769864786428,548.22,0.00035399,120]
[404108204,1769864786661,548.22,0.00035399,120]
[404108205,1769864786885,548.22,0.00035399,120]
[404108206,1769864787118,548.22,0.00035399,120]
[404108207,1769864787364,548.22,0.00035399,120]
[404108208,1769864787599,548.22,0.00035399,120]
[404108209,1769864787835,548.22,0.00035399,120]
[404108210,1769864788072,548.22,0.00035399,120]
[404108211,1769864788311,548.22,0.00035399,120]
[404108212,1769864788561,548.22,0.00035399,120]
[404108213,1769864788813,548.22,0.00035399,120]
[404108214,1769864789051,548.22,0.00035399,120]
[404108215,1769864789317,548.22,0.00035399,120]
[404108216,1769864789552,548.22,0.00035399,120]
[404108217,1769864789786,548.22,0.00035399,120]
[404108218,1769864790075,548.22,0.00035399,120]
[404108219,1769864790263,548.22,0.00035399,120]
[404108220,1769864790632,548.45442597,0.00035399,120]
[404108363,1769865032555,-2865.0990237,0.00031312,2]
[404108364,1769865032565,-1200.0,0.0003187,3]
[404108366,1769865032574,-2061.6233763,0.00031871,2]
[404108382,1769865038569,-130.62496434,0.00031871,2]
[404108384,1769865038579,-300.0,0.00032359,3]
[404108386,1769865038588,-156.35588439,0.00032359,2]
[404108388,1769865038600,-143.64411561,0.00032359,2]
[404108389,1769865038609,-1997.54636852,0.00032571,2]
[404108390,1769865038682,-475.80471361,0.00032571,2]
[404108421,1769865040759,-14458.0,0.00032571,2]
[404108422,1769865040816,-358.36397932,0.00032571,2]
[404108423,1769865040827,-17684.77510928,0.00032571,2]
[404108424,1769865040836,-169.22489072,0.00032899,7]
[404108436,1769865044281,-110.59031586,0.00032899,7]
[404108437,1769865044290,-510.40968414,0.000329,2]
[404108452,1769865046781,-1305.90519774,0.000329,2]
[404108453,1769865046791,-195.53,0.0003299,3]
[404108454,1769865046800,-586.63,0.0003299,3]
[404108455,1769865046809,-845.20676096,0.00033,2]
[404108460,1769865146237,500.0,0.00028927,7]
[404108461,1769865146722,506.86844826,0.00029245,7]
[404108462,1769865150468,249.44411208,0.00035399,120]
[404108792,1769865446629,-52537.52434733,0.00035399,20]
[404108793,1769865446660,-8947462.47565267,0.00035399,20]
[404108794,1769865451792,-1595445.64245721,0.00035399,20]
[404108795,1769865451821,-7404554.35754279,0.00035399,20]
[404108796,1769865455434,-4289628.14739231,0.00035399,20]
[404108797,1769865455461,-4710371.85260769,0.00035399,20]
[404108798,1769865459118,-4428028.53749928,0.00035399,20]
[404108799,1769865459147,-4571971.46250072,0.00035399,20]
[404108800,1769865462582,-8808216.5928174,0.00035399,20]
[404108801,1769865462610,-191783.4071826,0.00035399,20]
[404108802,1769865466502,-9000000.0,0.00035399,20]
[404108803,1769865470947,-2661792.94712475,0.00035399,20]
[404108804,1769865470974,-6338207.05287525,0.00035399,20]
[404108805,1769865474461,-4569490.52566909,0.00035399,20]
[404108806,1769865474488,-4430509.47433091,0.00035399,20]
[404108807,1769865477992,-2997740.07569618,0.00035399,20]
[404108808,1769865478017,-4017949.09038051,0.00035399,20]
[404108809,1769865478045,-1235517.50561924,0.00035399,20]
[404108810,1769865478071,-748793.32830407,0.00035399,20]
[404108811,1769865481455,-1053297.54838498,0.00035399,20]
[404108812,1769865481486,-6940882.4625259,0.00035399,20]
[404108813,1769865481514,-1005819.98908912,0.00035399,20]
[404108814,1769865492072,-248463.504534,0.00035399,20]
[404108815,1769865492100,-277057.83997823,0.00035399,20]
[404108816,1769865492128,-4087040.76148837,0.00035399,20]
[404108817,1769865492155,-1013955.26792541,0.00035399,20]
[404108818,1769865492181,-244734.28948429,0.00035399,20]
[404108819,1769865492207,-3128748.3365897,0.00035399,20]
[404108820,1769865495649,-8188323.87377503,0.00035399,20]
[404108821,1769865495678,-234099.51000027,0.00035399,20]
[404108822,1769865495705,-405079.9870683,0.00035399,20]
[404108823,1769865495732,-172496.6291564,0.00035399,20]
[404108824,1769865499460,-133747.8671868,0.00035399,20]
[404108825,1769865499487,-195880.03336607,0.00035399,20]
[404108826,1769865499514,-614774.20671088,0.00035399,20]
[404108827,1769865499544,-573.89,0.00035399,21]
[404108828,1769865499570,-573.89,0.00035399,21]
[404108829,1769865499598,-573.89,0.00035399,21]
[404108830,1769865499624,-573.89,0.00035399,21]
[404108831,1769865499651,-573.89,0.00035399,21]
[404108832,1769865499677,-573.89,0.00035399,21]
[404108833,1769865499701,-573.89,0.00035399,21]
[404108834,1769865499728,-573.89,0.00035399,21]
[404108835,1769865499754,-573.89,0.00035399,21]
[404108836,1769865499780,-573.89,0.00035399,21]
[404108837,1769865499805,-573.89,0.00035399,21]
[404108838,1769865499830,-573.89,0.00035399,21]
[404108839,1769865499855,-573.89,0.00035399,21]
[404108840,1769865499880,-573.89,0.00035399,21]
[404108841,1769865499906,-573.89,0.00035399,21]
[404108842,1769865499931,-573.89,0.00035399,21]
[404108843,1769865499957,-573.89,0.00035399,21]
[404108844,1769865499983,-573.89,0.00035399,21]
[404108845,1769865500008,-573.89,0.00035399,21]
[404108846,1769865500032,-573.89,0.00035399,21]
[404108847,1769865500057,-573.89,0.00035399,21]
[404108848,1769865500081,-573.89,0.00035399,21]
[404108849,1769865500107,-573.89,0.00035399,21]
[404108850,1769865500132,-573.99781836,0.00035399,21]
[404108851,1769865500158,-348.0,0.00035399,21]
[404108852,1769865500320,-500.0,0.00035399,21]
[404108853,1769865500345,-500.0,0.00035399,21]
[404108854,1769865500370,-500.0,0.00035399,21]
[404108855,1769865500395,-500.0,0.00035399,21]
[404108856,1769865500419,-539.16,0.00035399,21]
[404108857,1769865500444,-500.0,0.00035399,21]
[404108858,1769865500467,-500.0,0.00035399,21]
[404108859,1769865500492,-500.0,0.00035399,21]
[404108860,1769865500519,-500.0,0.00035399,21]
[404108861,1769865500544,-500.0,0.00035399,21]
[404108862,1769865500569,-500.0,0.00035399,21]
[404108863,1769865500597,-500.0,0.00035399,21]
[404108864,1769865500622,-542.16,0.00035399,21]
[404108865,1769865500651,-292808.38364133,0.00035399,20]
[404108866,1769865500677,-500.0,0.00035399,21]
[404108867,1769865500704,-500.0,0.00035399,21]
[404108868,1769865500730,-500.0,0.00035399,21]
[404108869,1769865500755,-500.0,0.00035399,21]
[404108870,1769865500780,-217.96388644,0.00035399,21]
[404108871,1769865500806,-500.0,0.00035399,21]
[404108872,1769865500833,-500.0,0.00035399,21]
[404108873,1769865500858,-500.0,0.00035399,21]
[404108874,1769865500884,-500.0,0.00035399,21]
[404108875,1769865500909,-500.0,0.00035399,21]
[404108876,1769865500934,-182.04,0.00035399,21]
[404108877,1769865500959,-500.0,0.00035399,21]
[404108878,1769865500984,-500.0,0.00035399,21]
[404108879,1769865501011,-500.0,0.00035399,21]
[404108880,1769865501036,-500.0,0.00035399,21]
[404108881,1769865501061,-570.29,0.00035399,21]
[404108882,1769865501086,-500.0,0.00035399,21]
[404108883,1769865501111,-500.0,0.00035399,21]
[404108884,1769865501136,-500.0,0.00035399,21]
[404108885,1769865501160,-500.0,0.00035399,21]
[404108886,1769865501184,-463.19,0.00035399,21]
[404108887,1769865501209,-500.0,0.00035399,21]
[404108888,1769865501234,-500.0,0.00035399,21]
[404108889,1769865501258,-500.0,0.00035399,21]
[404108890,1769865501283,-500.0,0.00035399,21]
[404108891,1769865501308,-360.56,0.00035399,21]
[404108892,1769865501334,-500.0,0.00035399,21]
[404108893,1769865501359,-500.0,0.00035399,21]
[404108894,1769865501383,-500.0,0.00035399,21]
[404108895,1769865501408,-500.0,0.00035399,21]
[404108896,1769865501438,-360.56,0.00035399,21]
[404108897,1769865501467,-500.0,0.00035399,21]
[404108898,1769865501492,-500.0,0.00035399,21]
[404108899,1769865501517,-500.0,0.00035399,21]
[404108900,1769865501543,-500.0,0.00035399,21]
[404108901,1769865501568,-360.56,0.00035399,21]
[404108902,1769865501595,-500.0,0.00035399,21]
[404108903,1769865501623,-500.0,0.00035399,21]
[404108904,1769865501649,-500.0,0.00035399,21]
[404108905,1769865501674,-500.0,0.00035399,21]
[404108906,1769865501698,-360.56,0.00035399,21]
[404108907,1769865501723,-500.0,0.00035399,21]
[404108908,1769865501747,-500.0,0.00035399,21]
[404108909,1769865501772,-500.0,0.00035399,21]
[404108910,1769865501798,-467.14,0.00035399,21]
[404108911,1769865501824,-500.0,0.00035399,21]
[404108912,1769865501849,-500.0,0.00035399,21]
[404108913,1769865501874,-500.0,0.00035399,21]
[404108914,1769865501899,-385.17,0.00035399,21]
[404108915,1769865501923,-500.0,0.00035399,21]
[404108916,1769865501947,-500.0,0.00035399,21]
[404108917,1769865501972,-500.0,0.00035399,21]
[404108918,1769865501996,-306.62,0.00035399,21]
[404108919,1769865502020,-500.0,0.00035399,21]
[404108920,1769865502044,-500.0,0.00035399,21]
[404108921,1769865502068,-500.0,0.00035399,21]
[404108922,1769865502093,-500.0,0.00035399,21]
[404108923,1769865502117,-500.0,0.00035399,21]